bitfinex/quotes_ETHUSD_20251019
["timestamp","ask_amount","ask_price","bid_price","bid_amount"]
[1760867481812,2.54699057,3926.3,3925.8,4.89083931]
[1760867482023,2.5468669,3926.4,3925.8,4.89083931]
[1760867482201,1.728,3926.8,3925.8,4.89083931]
[1760867482402,1.728,3927.5,3926.2,4.89083931]
[1760867482583,0.42740938,3927.4,3926.2,4.89083931]
[1760867482784,0.03182848,3927.3,3925.9,4.89083931]
[1760867483111,2.54682081,3926.5,3925.9,4.89083931]
[1760867483314,0.2168,3926.0,3921.9,4.51082726]
[1760867483617,1.27852386,3930.2,3924.8,4.89083931]
[1760867483618,1.9448,3926.7,3924.8,4.89083931]
[1760867483791,1.9448,3926.7,3925.2,4.89083931]
[1760867483792,2.54713762,3926.0,3925.2,4.89083931]
[1760867483992,1.728,3926.5,3924.0,3.456]
[1760867483993,0.4491415,3926.6,3924.4,4.89083931]
[1760867483994,0.24463983,3925.9,3924.4,4.89083931]
[1760867484175,0.24463983,3925.9,3924.0,3.456]
[1760867484176,1.728,3925.7,3924.0,3.456]
[1760867484382,2.18764226,3925.6,3923.0,5.08213931]
[1760867484611,2.54803069,3924.6,3923.4,4.89083931]
[1760867484912,1.728,3925.2,3923.8,4.89083931]
[1760867485111,1.728,3925.0,3923.8,4.89083931]
[1760867485298,4.27564088,3925.2,3925.1,0.1272]
[1760867485500,2.97544088,3925.2,3923.7,4.89083931]
[1760867485701,0.4278,3926.0,3924.1,4.89083931]
[1760867485906,1.728,3926.0,3924.2,0.1915]
[1760867486110,1.728,3926.1,3924.5,4.89083931]
[1760867486306,0.4256,3926.6,3924.3,0.4582]
[1760867486307,0.4256,3926.6,3924.9,4.89083931]
[1760867486507,4.93522992,3927.3,3925.3,4.89083931]
[1760867486508,0.4256,3927.2,3925.3,4.89083931]
[1760867486707,0.91912299,3927.2,3925.2,3.441]
[1760867486892,0.4256,3927.2,3925.2,3.441]
[1760867487088,2.54673308,3926.6,3925.2,3.441]
[1760867487407,2.54699982,3926.2,3925.2,3.441]
[1760867487606,0.24853172,3926.9,3925.2,3.441]
[1760867487798,2.5472383,3925.9,3925.2,3.441]
[1760867488322,2.54744577,3925.6,3925.1,0.1674]
[1760867488508,2.54660283,3926.8,3924.9,0.1674]
[1760867488823,0.44913028,3926.7,3925.6,4.89083931]
[1760867488998,2.54634345,3927.2,3925.6,4.89083931]
[1760867489198,2.54621378,3927.4,3925.3,3.5964]
[1760867489549,2.54621378,3927.4,3923.8,0.6336]
[1760867489550,1.728,3926.4,3924.1,5.34903931]
[1760867489724,0.6403,3926.3,3924.1,5.34903931]
[1760867490020,2.54743997,3925.6,3924.5,4.89083931]
[1760867490196,2.54750461,3925.5,3924.5,4.89083931]
[1760867490522,2.54796204,3924.8,3924.0,8.31683931]
[1760867490722,0.03184388,3925.4,3923.9,0.1674]
[1760867490929,0.24001366,3926.2,3925.0,4.89083931]
[1760867491223,0.4322,3927.6,3925.8,4.89083931]
[1760867491527,0.4322,3927.6,3925.1,0.1915]
[1760867491528,0.04437946,3926.4,3925.6,3.416]
[1760867491710,2.57836341,3927.0,3925.7,4.89083931]
[1760867491893,0.0443761,3926.4,3925.7,4.89083931]
[1760867492623,0.0443761,3926.4,3925.6,3.416]
[1760867493121,2.54698198,3926.3,3925.3,4.89083931]
[1760867493329,2.54692713,3926.3,3925.1,0.1915]
[1760867493536,2.546992,3926.2,3925.1,0.1915]
[1760867493733,2.5473395,3925.7,3925.0,4.89083931]
[1760867493939,0.03184226,3925.6,3924.2,0.1674]
[1760867494124,1.728,3926.1,3924.4,4.89083931]
[1760867494324,1.728,3926.1,3924.3,0.4582]
[1760867494325,2.54781375,3925.0,3924.2,8.45823931]
[1760867494731,0.62683138,3926.0,3924.2,8.45823931]
[1760867494732,0.19903138,3926.0,3924.6,4.89083931]
[1760867495042,1.728,3926.7,3924.6,4.89083931]
[1760867495043,2.18543415,3926.6,3924.6,4.89083931]
[1760867495224,2.18543415,3926.6,3925.1,4.89083931]
[1760867495402,1.728,3926.4,3925.1,4.89083931]
[1760867495602,1.728,3926.4,3924.2,3.5674]
[1760867495603,1.728,3926.1,3924.2,5.05823931]
[1760867495802,0.04438773,3926.8,3926.4,0.1272]
[1760867496008,0.04438773,3926.8,3925.1,0.002]
[1760867496009,2.54712939,3926.0,3925.1,0.002]
[1760867496227,2.54720142,3925.9,3925.1,0.002]
[1760867496428,2.54712175,3926.0,3925.9,0.1272]
[1760867496934,0.50941138,3926.0,3925.1,0.002]
[1760867497137,1.728,3926.5,3925.1,0.002]
[1760867497360,2.54764088,3925.2,3925.1,0.002]
[1760867497924,2.57948639,3925.2,3925.1,0.002]
[1760867498251,3.03698639,3925.2,3925.1,0.002]
[1760867498457,2.54755061,3925.4,3925.1,0.002]
[1760867498458,0.1806,3925.9,3925.1,0.002]
[1760867498614,2.54762935,3925.3,3925.1,0.002]
[1760867498818,2.54764088,3925.2,3925.1,0.002]
[1760867499549,3.00487042,3925.7,3925.1,0.002]
[1760867499550,2.54725151,3925.8,3925.1,0.002]
[1760867499709,3.00514088,3925.2,3925.1,0.002]
[1760867499912,3.03698639,3925.2,3925.1,0.002]
[1760867500336,4.76498639,3925.2,3925.1,0.002]
[1760867501156,4.27564088,3925.2,3925.1,0.002]
[1760867501376,2.54764088,3925.2,3925.1,0.002]
[1760867501535,0.4603,3926.4,3925.1,0.002]
[1760867501745,2.54761369,3925.3,3925.1,0.002]
[1760867501962,1.9114,3925.9,3925.1,0.002]
[1760867502125,0.4547,3926.7,3925.2,4.89083931]
[1760867502324,0.04438512,3925.9,3925.2,4.89083931]
[1760867503331,0.04438512,3925.9,3925.6,4.89083931]
[1760867503630,0.04438512,3925.9,3925.7,0.464]
[1760867504663,0.04438512,3925.9,3925.5,4.89083931]
[1760867504664,0.04438512,3925.9,3925.1,0.1935]
[1760867504869,0.2192,3926.8,3925.3,4.89083931]
[1760867505067,1.728,3926.9,3925.7,4.89083931]
[1760867505280,0.0318301,3927.1,3925.8,0.464]
[1760867505441,0.48292767,3927.4,3925.4,4.89083931]
[1760867505634,2.54674282,3926.6,3925.4,4.89083931]
[1760867505834,2.54640829,3927.1,3925.4,4.89083931]
[1760867506170,2.54693985,3926.3,3925.3,8.23383931]
[1760867506370,2.54687506,3926.4,3925.3,8.23383931]
[1760867506871,0.03183172,3926.9,3926.3,0.1272]
[1760867507084,0.03183172,3926.9,3925.4,0.464]
[1760867507381,0.001,3927.4,3926.3,4.89083931]
[1760867507545,0.001,3927.4,3926.4,0.1913]
[1760867507746,0.001,3927.4,3926.7,4.89083931]
[1760867508046,0.001,3927.4,3926.7,7.43748994]
[1760867508452,0.001,3927.4,3926.8,2.54656929]
[1760867508651,0.001,3927.4,3927.1,4.89083931]
[1760867508864,0.001,3927.4,3927.3,0.1674]
[1760867509466,0.001,3927.4,3926.4,2.738101]
[1760867509467,0.001,3927.4,3926.8,0.1674]
[1760867509628,0.001,3927.4,3926.2,4.89083931]
[1760867510030,2.54627861,3927.3,3926.2,4.89083931]
[1760867510226,2.54647313,3927.0,3926.1,0.1913]
[1760867510430,0.03183172,3926.9,3926.0,5.05823931]
[1760867510665,0.226,3926.9,3925.8,3.318]
[1760867510845,0.226,3926.9,3925.5,0.1674]
[1760867510846,0.03183253,3926.8,3925.5,0.1674]
[1760867511034,0.03183253,3926.8,3925.4,4.89083931]
[1760867511338,0.71914271,3926.7,3925.1,0.1935]
[1760867511551,2.54704664,3926.2,3925.1,0.002]
[1760867511753,2.54693573,3926.3,3925.1,0.002]
[1760867512064,0.03183821,3926.1,3925.1,0.002]
[1760867512239,1.728,3926.4,3925.1,0.002]
[1760867512240,2.57869988,3926.4,3925.2,5.08233931]
[1760867512446,2.54688502,3926.4,3925.2,7.62992722]
[1760867512668,4.27442258,3927.1,3925.2,7.62992722]
[1760867512669,1.728,3927.0,3926.3,0.1913]
[1760867512830,0.04437353,3926.9,3926.3,0.1913]
[1760867513231,2.54680355,3926.5,3925.8,8.19483931]
[1760867513445,2.54660283,3926.8,3925.8,8.19483931]
[1760867513960,2.54685853,3926.5,3925.8,8.19483931]
[1760867514172,2.54661919,3926.8,3925.8,8.19483931]
[1760867514173,2.54673691,3926.6,3925.8,8.19483931]
[1760867514347,2.54680933,3926.5,3925.8,8.19483931]
[1760867514540,2.54686489,3926.4,3925.8,4.89083931]
[1760867514759,0.27237353,3926.9,3925.6,0.1674]
[1760867514760,2.5467974,3926.5,3925.6,0.1674]
[1760867515063,2.57869803,3926.4,3925.4,8.18583931]
[1760867515466,2.54692713,3926.3,3925.4,8.18583931]
[1760867515779,2.54704468,3926.2,3925.4,8.18583931]
[1760867516078,0.03183577,3926.4,3925.4,8.18583931]
[1760867516262,2.54722416,3925.9,3925.4,3.295]
[1760867516573,0.27237353,3926.9,3925.5,0.464]
[1760867516892,2.54654456,3926.9,3925.8,7.43805996]
[1760867517162,2.57817476,3927.2,3925.9,0.464]
[1760867517363,2.57817476,3927.2,3927.1,0.1272]
[1760867517581,0.001,3927.4,3927.1,0.1272]
[1760867517733,2.54634345,3927.2,3927.1,0.1272]
[1760867517929,2.54636724,3927.2,3926.3,4.89083931]
[1760867518279,2.54722733,3927.4,3926.3,7.90175529]
[1760867518446,0.001,3927.4,3926.3,5.35483931]
[1760867518771,0.001,3927.4,3926.3,7.90175222]
[1760867518972,0.001,3927.4,3926.4,2.54684934]
[1760867519132,0.001,3927.4,3926.7,4.89083931]
[1760867519765,0.001,3927.4,3927.1,4.89083931]
[1760867519975,0.04436102,3927.3,3927.1,4.89083931]
[1760867520276,0.001,3927.8,3927.2,0.464]
[1760867520482,0.001,3927.8,3927.3,3.27]
[1760867520775,0.001,3927.8,3927.2,4.89083931]
[1760867520949,0.001,3927.8,3927.0,3.268]
[1760867521152,0.03282443,3927.8,3927.0,3.268]
[1760867521473,0.03282443,3927.8,3926.2,0.1913]
[1760867521474,2.54634509,3927.2,3926.4,4.89083931]
[1760867521679,2.54642451,3927.1,3926.4,4.89083931]
[1760867521883,0.001,3927.8,3926.4,4.89083931]
[1760867522055,0.4556,3927.5,3926.1,3.266]
[1760867522257,0.4556,3927.5,3925.8,4.89083931]
[1760867522258,2.54627861,3927.3,3925.8,4.89083931]
[1760867522590,0.25018767,3927.4,3925.2,0.6555]
[1760867522591,0.48742929,3927.2,3925.7,4.89083931]
[1760867522764,0.21836,3927.4,3926.5,4.89083931]
[1760867523080,0.21836,3927.4,3925.7,0.464]
[1760867523081,0.03182848,3927.3,3926.1,8.14883931]
[1760867523281,2.1846,3927.8,3925.7,0.464]
[1760867523282,0.4556,3927.2,3925.7,4.89083931]
[1760867523482,2.54640829,3927.1,3925.8,3.255]
[1760867523777,2.54672252,3926.7,3925.8,3.255]
[1760867523970,2.54674107,3926.6,3925.8,3.255]
[1760867524168,2.54640829,3927.1,3925.8,3.255]
[1760867524342,1.728,3927.6,3926.1,4.89083931]
[1760867524548,0.4566,3927.8,3926.2,0.1459]
[1760867524754,1.728,3927.4,3926.2,0.1459]
[1760867524973,2.54644562,3927.1,3926.2,5.03673931]
[1760867525244,2.54660371,3926.8,3926.2,5.03673931]
[1760867525450,2.57834052,3927.0,3926.2,8.90673931]
[1760867525650,2.1846,3927.8,3926.4,4.89083931]
[1760867525651,2.1575,3927.8,3926.4,4.89083931]
[1760867525956,0.03182524,3927.7,3926.4,4.89083931]
[1760867526170,0.03182524,3927.7,3925.2,5.08233931]
[1760867526171,0.6336,3927.5,3925.2,5.08233931]
[1760867526486,0.03182524,3927.7,3924.9,0.1674]
[1760867526487,0.03182767,3927.4,3925.3,0.6566]
[1760867526685,0.4295,3927.8,3925.9,4.89083931]
[1760867526872,0.6336,3927.6,3925.9,4.89083931]
[1760867527061,0.69864524,3927.7,3925.3,0.1915]
[1760867527062,2.54627861,3927.3,3925.3,0.1915]
[1760867527271,1.728,3926.9,3925.2,3.237]
[1760867527463,0.2313,3927.0,3925.6,4.89083931]
[1760867527791,2.54653798,3926.9,3925.6,4.89083931]
[1760867528093,0.4505838,3926.8,3925.6,4.89083931]
[1760867528397,2.54693115,3926.3,3925.2,8.12783931]
[1760867528602,2.54705687,3926.1,3925.2,8.12783931]
[1760867528769,2.54717469,3926.0,3925.2,4.89083931]
[1760867528975,0.8790838,3926.8,3925.1,3.8896]
[1760867528976,0.03183496,3926.5,3925.6,4.89083931]
[1760867529169,0.03183496,3926.5,3925.9,0.1272]
[1760867529488,2.5786459,3926.5,3926.4,0.1272]
[1760867529671,5.29053122,3926.5,3926.4,0.1272]
[1760867529994,2.54692713,3926.3,3926.0,0.1272]
[1760867530198,2.54705687,3926.1,3926.0,0.1272]
[1760867530491,2.54736034,3925.7,3925.1,0.002]
[1760867530699,0.0318374,3926.2,3925.1,0.002]
[1760867530870,2.54726027,3925.8,3925.6,0.1272]
[1760867531072,2.57916953,3925.7,3925.1,0.002]
[1760867531291,0.03184145,3925.7,3925.1,0.1935]
[1760867531484,2.57915785,3925.7,3925.6,0.1272]
[1760867531788,2.5473164,3925.7,3925.6,0.1272]
[1760867532192,3.05677445,3925.7,3925.6,0.1272]
[1760867532801,3.05677445,3925.7,3924.7,4.89283931]
[1760867532802,5.82749736,3925.7,3924.7,0.002]
[1760867533102,4.27590052,3924.8,3924.7,0.002]
[1760867533404,4.30774927,3924.8,3924.7,0.002]
[1760867533558,5.44485428,3924.8,3924.7,0.002]
[1760867533760,6.04660553,3924.8,3924.7,0.002]
[1760867534578,5.41300553,3924.8,3924.7,0.002]
[1760867534818,4.27590052,3924.8,3924.7,0.002]
[1760867535298,4.30774927,3924.8,3924.7,0.002]
[1760867535500,4.35214791,3924.8,3924.7,0.002]
[1760867536033,0.04439864,3924.8,3924.7,0.002]
[1760867536328,2.59229916,3924.8,3924.7,0.002]
[1760867536514,3.10949431,3924.8,3924.7,0.002]
[1760867536917,5.26689431,3924.8,3924.7,0.002]
[1760867537131,5.90049431,3924.8,3924.7,0.002]
[1760867537450,5.90049431,3924.8,3922.1,1.72]
[1760867537451,3.35259379,3924.8,3922.1,1.72]
[1760867537600,3.35259379,3924.8,3921.9,0.1915]
[1760867537601,2.54955427,3922.3,3921.9,0.1915]
[1760867537942,2.54866995,3923.7,3920.4,2.55275844]
[1760867537943,0.03186986,3922.2,3921.5,0.1915]
[1760867538226,0.03186824,3922.4,3920.9,0.1915]
[1760867538449,0.03186824,3922.4,3921.1,0.4596]
[1760867538594,2.54922221,3922.8,3921.1,0.4596]
[1760867538798,2.54947385,3922.4,3921.1,0.4596]
[1760867539026,0.03186255,3923.1,3921.1,0.4596]
[1760867539216,0.03186255,3923.1,3921.0,0.6271]
[1760867539421,0.25523094,3923.1,3921.0,0.6271]
[1760867539722,0.25523094,3923.1,3921.1,0.4596]
[1760867540030,2.54986913,3921.8,3921.1,0.4596]
[1760867540229,0.03187393,3921.7,3921.0,0.1675]
[1760867540536,0.03187393,3921.7,3920.8,0.002]
[1760867540537,2.55043484,3920.9,3920.8,0.002]
[1760867540828,2.55037234,3921.0,3920.8,0.002]
[1760867541126,1.728,3922.4,3920.8,0.002]
[1760867541127,2.58231527,3920.9,3920.8,0.002]
[1760867541327,0.03188043,3920.9,3920.8,0.002]
[1760867541527,2.55017723,3921.3,3920.8,0.4616]
[1760867541730,2.55011369,3921.4,3920.8,0.4616]
[1760867541934,2.54952451,3922.3,3920.8,0.4616]
[1760867542109,0.03186986,3922.2,3920.8,0.4616]
[1760867542334,2.54971953,3922.0,3920.8,0.002]
[1760867542557,2.55062619,3920.7,3920.0,0.002]
[1760867542731,1.728,3921.8,3920.0,0.002]
[1760867542732,2.58255127,3920.6,3920.0,0.002]
[1760867543062,2.58255127,3920.6,3920.5,0.1272]
[1760867543419,0.1272,3921.4,3920.5,0.1272]
[1760867543844,0.4294,3921.9,3920.1,0.1915]
[1760867543845,0.04444258,3921.3,3920.1,0.1915]
[1760867544059,0.04444258,3921.3,3920.4,0.4616]
[1760867544356,0.04444258,3921.3,3920.4,0.002]
[1760867544743,0.04444258,3921.3,3921.2,0.1675]
[1760867544946,0.04444258,3921.3,3921.2,0.6271]
[1760867545325,0.04444258,3921.3,3921.2,0.1675]
[1760867545856,0.04444258,3921.3,3920.7,0.4596]
[1760867546358,0.04444258,3921.3,3921.2,0.1675]
[1760867546657,0.04444258,3921.3,3920.4,0.002]
[1760867546832,0.04444258,3921.3,3920.5,0.6511]
[1760867547022,0.4294,3922.6,3921.2,0.1675]
[1760867547426,0.26975743,3922.5,3921.2,0.1675]
[1760867547626,0.03186743,3922.5,3921.2,0.1675]
[1760867547859,2.54970767,3922.1,3921.2,0.1675]
[1760867548034,2.54994315,3921.7,3921.2,0.1675]
[1760867548236,2.58162645,3922.0,3920.5,0.1915]
[1760867548237,2.55024764,3921.2,3920.5,0.1915]
[1760867548485,2.5503163,3921.1,3920.4,0.002]
[1760867548660,0.6509,3922.7,3920.6,0.4596]
[1760867548860,0.03186661,3922.6,3920.6,0.4596]
[1760867549030,2.54975275,3922.0,3920.7,2.55055302]
[1760867549230,0.03186824,3922.4,3920.6,0.4596]
[1760867549432,0.4294,3922.3,3920.6,0.4596]
[1760867549817,0.4294,3922.3,3920.4,0.002]
[1760867549818,2.54965452,3922.1,3920.4,0.002]
[1760867550090,2.1574,3922.3,3920.4,0.4616]
[1760867550297,2.5938364,3922.5,3920.4,0.4616]
[1760867550502,2.5938364,3922.5,3920.4,0.002]
[1760867550503,0.28153364,3922.4,3920.4,0.002]
[1760867550785,2.54958951,3922.2,3920.6,0.002]
[1760867551087,2.77206495,3920.7,3920.6,0.002]
[1760867551285,0.03188124,3920.8,3920.6,0.002]
[1760867551489,2.54978454,3921.9,3920.6,0.4616]
[1760867551788,0.03187311,3921.8,3920.6,0.002]
[1760867551988,0.001,3922.0,3920.6,0.4616]
[1760867552179,0.001,3922.0,3921.7,0.1675]
[1760867552763,0.001,3922.0,3921.7,0.6271]
[1760867552950,0.001,3922.0,3921.8,0.4596]
[1760867553157,0.001,3922.0,3921.9,2.54978454]
[1760867553355,0.001,3922.0,3921.9,0.4596]
[1760867553554,0.001,3922.0,3921.9,3.00938454]
[1760867553885,0.001,3922.0,3921.9,3.13658454]
[1760867554184,0.001,3922.0,3921.9,0.5868]
[1760867554685,0.001,3922.0,3921.9,0.1272]
[1760867554987,0.001,3922.0,3921.5,0.1675]
[1760867555353,0.001,3922.0,3921.6,0.4316]
[1760867555784,0.001,3922.0,3921.1,0.1675]
[1760867555960,2.5500284,3921.6,3920.4,0.002]
[1760867556165,2.5501778,3921.3,3920.4,0.002]
[1760867556367,2.55020114,3921.3,3920.4,0.002]
[1760867556566,0.03187474,3921.6,3920.4,0.002]
[1760867556768,0.4213,3921.5,3920.4,0.002]
[1760867557167,2.55056495,3920.7,3920.4,0.002]
[1760867558403,0.2235,3921.0,3920.4,0.002]
[1760867558716,2.96986495,3920.7,3920.4,0.002]
[1760867559085,2.84718464,3921.5,3920.6,0.4336]
[1760867559397,0.4174,3921.6,3920.6,0.002]
[1760867559567,2.55034447,3921.1,3920.6,0.002]
[1760867559769,2.55043381,3921.0,3920.6,0.002]
[1760867559965,2.55004462,3921.5,3920.6,0.002]
[1760867560266,2.5499982,3921.6,3920.6,2.55261171]
[1760867560504,2.55017936,3921.3,3920.6,0.002]
[1760867560802,2.55029714,3921.2,3920.6,0.002]
[1760867560970,2.55042749,3921.0,3920.6,0.002]
[1760867561165,0.4174,3921.0,3920.6,0.002]
[1760867561369,0.2274,3921.1,3920.6,0.002]
[1760867561582,2.55056495,3920.7,3920.6,0.002]
[1760867561903,3.10221493,3920.7,3920.6,0.002]
[1760867562114,3.51771493,3920.7,3920.6,0.002]
[1760867562472,5.27759699,3920.7,3920.6,0.002]
[1760867562695,5.24571493,3920.7,3920.6,0.002]
[1760867563601,4.27876012,3920.4,3920.3,0.002]
[1760867563770,4.27876012,3920.4,3917.7,0.1675]
[1760867563771,2.55089026,3920.2,3917.7,0.1675]
[1760867563968,2.5510204,3920.0,3918.2,0.1499]
[1760867564402,2.9665204,3920.0,3918.2,0.1499]
[1760867564903,2.9665204,3920.0,3919.5,0.1292]
[1760867565208,5.3281204,3920.0,3919.5,0.002]
[1760867565405,6.37555355,3920.0,3919.5,0.002]
[1760867566102,5.74195355,3920.0,3919.5,0.002]
[1760867566308,6.37555355,3920.0,3919.5,0.002]
[1760867567108,5.74195355,3920.0,3919.5,0.002]
[1760867567279,4.01395355,3920.0,3919.5,0.002]
[1760867567476,4.0458413,3920.0,3919.5,0.002]
[1760867568307,6.4074413,3920.0,3919.5,0.002]
[1760867568533,6.37555355,3920.0,3919.5,0.002]
[1760867568689,5.96005355,3920.0,3919.5,0.002]
[1760867568887,2.55128074,3919.6,3919.5,1e-08]
[1760867569312,3.52574757,3919.6,3919.5,1e-08]
[1760867569610,3.60209635,3919.6,3919.5,1e-08]
[1760867569910,2.62762952,3919.6,3919.5,1e-08]
[1760867570276,0.04445778,3919.6,3919.5,1e-08]
[1760867570677,0.04445778,3919.6,3919.5,0.43160001]
[1760867571514,0.04445778,3919.6,3919.5,2.98294584]
[1760867572212,0.001,3920.8,3919.5,0.43160001]
[1760867572444,0.001,3920.8,3920.7,2.74206495]
[1760867572809,0.001,3920.8,3920.7,3.17366495]
[1760867573310,0.001,3920.8,3920.7,0.6231]
[1760867573510,0.001,3920.8,3920.7,3.17366495]
[1760867573936,0.001,3920.8,3920.7,0.6231]
[1760867574139,0.001,3920.8,3920.7,3.17366495]
[1760867575110,0.001,3920.8,3920.7,3.30086495]
[1760867577554,0.001,3920.8,3920.7,3.32469963]
[1760867578923,0.001,3920.8,3920.7,5.53526495]
[1760867579336,0.001,3920.8,3920.7,4.90166495]
[1760867580458,0.001,3920.8,3920.7,5.53526495]
[1760867580750,0.001,3922.0,3921.9,2.54978454]
[1760867580951,0.001,3922.0,3921.8,0.1675]
[1760867581150,0.001,3922.0,3920.8,0.4316]
[1760867581151,0.001,3922.0,3921.3,3.168]
[1760867581361,0.001,3922.0,3920.8,0.4316]
[1760867581517,0.2367,3921.9,3921.3,2.55011374]
[1760867581719,0.2367,3921.9,3920.9,3.168]
[1760867581952,0.001,3922.0,3921.4,2.55005514]
[1760867582251,0.001,3922.0,3920.9,3.168]
[1760867582252,0.2367,3921.9,3921.1,2.55025868]
[1760867582449,0.2367,3921.9,3920.9,3.168]
[1760867582851,0.001,3922.0,3921.5,2.55000246]
[1760867583026,0.001,3922.0,3920.9,3.168]
[1760867583228,0.001,3922.0,3921.9,2.54978454]
[1760867583575,0.001,3922.0,3921.8,3.159]
[1760867583726,0.001,3922.0,3921.9,2.54978454]
[1760867583917,0.001,3922.0,3921.9,2.98138454]
[1760867584448,0.001,3922.0,3921.9,2.54978454]
[1760867584647,0.001,3922.0,3921.9,3.153]
[1760867584850,0.001,3922.0,3921.9,2.54978454]
[1760867585254,0.001,3922.0,3921.9,3.00888454]
[1760867585754,0.001,3922.0,3921.0,2.55033818]
[1760867585755,0.2171,3922.0,3920.5,0.1915]
[1760867585940,0.001,3922.0,3920.5,0.1915]
[1760867586142,0.001,3922.0,3920.6,0.4591]
[1760867586741,0.001,3922.0,3921.5,2.55003279]
[1760867586954,0.001,3922.0,3921.6,3.172]
[1760867587153,0.001,3922.0,3920.6,0.4591]
[1760867587373,0.001,3922.0,3920.5,2.74214018]
[1760867587374,0.2298,3921.9,3920.7,3.17]
[1760867587578,0.4134,3921.8,3920.7,3.17]
[1760867587737,2.54992745,3921.7,3920.7,3.17]
[1760867587943,0.32260006,3921.7,3920.7,3.17]
[1760867588444,0.4134,3921.8,3920.7,3.17]
[1760867588640,0.2298,3921.9,3920.7,3.17]
[1760867588844,0.001,3922.0,3921.5,2.54998453]
[1760867589044,0.001,3922.0,3921.8,0.1272]
[1760867589248,0.001,3922.0,3921.5,2.549982]
[1760867589444,0.001,3922.0,3921.0,2.5503698]
[1760867589672,0.001,3922.0,3920.8,0.4591]
[1760867589882,0.001,3922.0,3921.9,2.54978454]
[1760867590077,0.001,3922.0,3921.9,5.71078454]
[1760867590250,0.001,3922.0,3921.9,6.18068454]
[1760867591254,0.001,3922.0,3921.9,3.161]
[1760867591453,0.001,3922.0,3920.8,0.4699]
[1760867591681,0.001,3922.0,3921.0,0.4699]
[1760867592287,0.001,3922.0,3921.4,2.55007689]
[1760867592585,0.001,3922.0,3921.5,5.7190096]
[1760867593004,0.001,3922.0,3921.0,0.4699]
[1760867593150,0.001,3922.0,3921.5,2.55003012]
[1760867593468,0.001,3922.0,3921.4,2.55010758]
[1760867593674,0.001,3922.0,3921.2,2.55023972]
[1760867593869,0.001,3922.0,3921.5,2.55002083]
[1760867594261,0.001,3922.0,3921.3,2.55016233]
[1760867594460,0.001,3922.0,3921.1,3.168]
[1760867594653,0.001,3922.0,3921.9,2.54978454]
[1760867594848,0.001,3922.0,3921.8,5.71478804]
[1760867595054,0.001,3922.0,3921.9,5.70678454]
[1760867596592,0.001,3922.0,3921.9,6.17668454]
[1760867598264,0.001,3922.0,3921.0,5.61271215]
[1760867598265,0.001,3922.0,3920.7,2.55051117]
[1760867598466,0.001,3922.0,3921.2,2.55018396]
[1760867598665,0.001,3922.0,3921.3,3.153]
[1760867599192,0.001,3922.0,3920.0,0.1675]
[1760867599193,0.2141,3921.9,3920.9,3.152]
[1760867599405,2.54986253,3921.8,3921.0,3.152]
[1760867599604,0.2141,3921.9,3921.8,0.1272]
[1760867599812,0.6586,3921.9,3921.8,0.1272]
[1760867599970,2.54994033,3921.7,3920.0,0.1675]
[1760867600171,0.6586,3921.9,3920.1,3.151]
[1760867600374,0.6586,3921.9,3920.2,0.4699]
[1760867600577,0.001,3922.0,3920.2,0.4699]
[1760867600774,0.2141,3921.9,3920.2,0.4699]
[1760867601076,0.2141,3921.9,3921.0,2.55036716]
[1760867601077,2.76389366,3921.9,3921.0,2.55036716]
[1760867601283,2.5499169,3921.7,3921.1,3.148]
[1760867601600,0.2141,3921.9,3921.1,3.148]
[1760867601601,2.54985839,3921.8,3921.1,3.148]
[1760867601763,2.76388719,3921.9,3921.1,3.148]
[1760867601963,2.54998313,3921.6,3921.1,3.148]
[1760867602176,0.2141,3921.9,3921.1,3.148]
[1760867602388,0.2141,3921.9,3921.1,5.69827551]
[1760867602590,0.2141,3921.9,3919.9,2.55104026]
[1760867602591,0.47637311,3921.8,3919.7,3.148]
[1760867602814,0.4445,3921.7,3920.1,2.71844438]
[1760867603013,3.02635434,3921.6,3920.6,0.002]
[1760867603214,2.76466495,3920.7,3920.6,0.002]
[1760867603722,3.77138655,3920.7,3920.6,0.002]
[1760867605026,3.21846495,3920.7,3920.6,0.002]
[1760867605324,2.55044554,3920.9,3920.6,0.002]
[1760867605536,0.2141,3921.3,3920.6,0.002]
[1760867606214,2.55030672,3921.1,3920.6,0.002]
[1760867606416,0.24597718,3921.3,3920.6,0.002]
[1760867606605,0.2141,3921.3,3920.6,0.002]
[1760867607004,0.04542927,3922.0,3920.6,0.002]
[1760867607005,0.04542927,3922.0,3921.2,0.1675]
[1760867607316,0.04542927,3922.0,3921.7,2.549851]
[1760867607519,0.001,3922.0,3921.9,2.54978454]
[1760867608216,0.001,3922.0,3921.9,3.01968454]
[1760867608884,0.001,3922.0,3921.9,8.52928454]
[1760867609613,0.001,3922.0,3921.9,7.89568454]
[1760867609821,0.001,3922.0,3921.9,8.52928454]
[1760867610011,0.001,3922.0,3921.9,8.65648454]
[1760867610219,0.001,3922.0,3921.9,11.71877492]
[1760867610444,0.001,3922.8,3922.3,2.54952451]
[1760867611026,0.001,3922.8,3922.3,5.69752451]
[1760867611215,0.001,3922.8,3922.3,6.16742451]
[1760867611694,0.001,3922.8,3922.3,5.69752451]
[1760867611897,0.001,3922.8,3922.3,2.54952451]
[1760867612216,0.001,3922.8,3922.3,6.16742451]
[1760867612925,0.001,3922.8,3922.3,7.89542451]
[1760867614128,0.001,3922.8,3922.3,8.52902451]
[1760867614718,0.001,3922.8,3922.3,11.59091972]
[1760867615022,0.001,3922.8,3922.3,5.38102451]
[1760867615224,0.001,3922.8,3922.3,8.52802451]
[1760867617101,0.001,3922.8,3922.7,3.18286453]
[1760867617293,0.001,3922.8,3922.7,7.9727661]
[1760867617532,0.2258,3925.4,3925.3,2.54757598]